fUSD/lending_fUSD_20250930
["ID","MTS","AMOUNT","RATE_DAILY","PERIOD"]
[388588720,1759246303302,-151.0,0.00019726,2]
[388588721,1759246303312,-1290.49,0.00019726,2]
[388588722,1759246303324,-3809.34,0.00019726,2]
[388588723,1759246303334,-1897.55,0.00019726,2]
[388588724,1759246303344,-500.0,0.00019726,2]
[388588725,1759246303357,-1234.73,0.00019726,2]
[388588726,1759246303367,-151.0,0.00019726,2]
[388588727,1759246303376,-500.0,0.00019726,2]
[388588728,1759246303387,-151.0,0.00019726,2]
[388588729,1759246303396,-4292.81,0.00019726,2]
[388588730,1759246303405,-1754.78,0.00019726,2]
[388588731,1759246303415,-2384.75,0.00019726,2]
[388588732,1759246303424,-500.0,0.00019726,2]
[388588733,1759246303434,-500.0,0.00019726,2]
[388588734,1759246303444,-500.0,0.00019726,2]
[388588735,1759246303453,-500.0,0.00019726,2]
[388588736,1759246303463,-500.0,0.00019726,2]
[388588737,1759246303473,-3359.21,0.00019726,2]
[388588738,1759246303482,-5138.45,0.00019726,2]
[388588739,1759246303493,-1979.25,0.00019726,2]
[388588740,1759246303503,-200.05907396,0.00019726,2]
[388588741,1759246303514,-655.26,0.00019726,2]
[388588742,1759246303525,-151.0,0.00019726,2]
[388588743,1759246303535,-500.0,0.00019726,2]
[388588744,1759246303545,-210.857949,0.00019726,2]
[388588745,1759246303556,-1322.77,0.00019726,2]
[388588746,1759246303576,-531.26,0.00019726,2]
[388588747,1759246303588,-500.0,0.00019726,2]
[388588748,1759246303601,-500.0,0.00019726,2]
[388588749,1759246303610,-3085.65,0.00019726,2]
[388588750,1759246303620,-2470.44,0.00019726,2]
[388588751,1759246303630,-2727.78,0.00019726,2]
[388588752,1759246303640,-500.0,0.00019726,2]
[388588753,1759246303651,-500.0,0.00019726,2]
[388588754,1759246303661,-500.0,0.00019726,2]
[388588755,1759246303673,-500.0,0.00019726,2]
[388588756,1759246303683,-209.76999716,0.00019726,2]
[388588757,1759246303693,-4263.5,0.00019726,2]
[388588758,1759246303703,-500.0,0.00019726,2]
[388588759,1759246303713,-500.0,0.00019726,2]
[388588760,1759246303722,-500.0,0.00019726,2]
[388588761,1759246303732,-547.24,0.00019726,2]
[388588762,1759246303742,-500.0,0.00019726,2]
[388588763,1759246303751,-1482.44,0.00019726,2]
[388588764,1759246303761,-500.0,0.00019726,2]
[388588765,1759246303771,-1750.78,0.00019726,2]
[388588766,1759246303781,-500.0,0.00019726,2]
[388588767,1759246303791,-500.0,0.00019726,2]
[388588768,1759246303801,-828.11,0.00019726,2]
[388588769,1759246303811,-500.0,0.00019726,2]
[388588770,1759246303820,-151.0,0.00019726,2]
[388588771,1759246303831,-2451.72,0.00019726,2]
[388588772,1759246303841,-500.0,0.00019726,2]
[388588773,1759246303853,-500.0,0.00019726,2]
[388588774,1759246303866,-151.0,0.00019726,2]
[388588775,1759246303877,-642.82998568,0.00019726,2]
[388588776,1759246303887,-500.0,0.00019726,2]
[388588777,1759246303898,-500.0,0.00019726,2]
[388588778,1759246303908,-1890.03,0.00019726,2]
[388588779,1759246303918,-2537.88,0.00019726,2]
[388588780,1759246303929,-2985.33,0.00019726,2]
[388588781,1759246303938,-151.0,0.00019726,2]
[388588782,1759246303948,-2483.82,0.00019726,2]
[388588783,1759246303958,-1896.2,0.00019726,2]
[388588784,1759246303968,-1838.21,0.00019726,2]
[388588785,1759246303979,-500.0,0.00019726,2]
[388588786,1759246303989,-826.68,0.00019726,2]
[388588787,1759246303999,-151.0,0.00019726,2]
[388588788,1759246304009,-500.0,0.00019726,2]
[388588789,1759246304019,-1012.19,0.00019726,2]
[388588790,1759246304029,-2222.19,0.00019726,2]
[388588791,1759246304039,-500.0,0.00019726,2]
[388588792,1759246304049,-2176.82,0.00019726,2]
[388588793,1759246304059,-151.0,0.00019726,2]
[388588794,1759246304074,-500.0,0.00019726,2]
[388588795,1759246304087,-3211.51,0.00019726,2]
[388588796,1759246304096,-151.0,0.00019726,2]
[388588797,1759246304113,-500.0,0.00019726,2]
[388588798,1759246304123,-1054.78,0.00019726,2]
[388588799,1759246304132,-500.0,0.00019726,2]
[388588800,1759246304142,-1902.77,0.00019726,2]
[388588801,1759246304152,-1308.77,0.00019726,2]
[388588802,1759246304161,-2812.02,0.00019726,2]
[388588803,1759246304172,-1143.1,0.00019726,2]
[388588804,1759246304182,-500.0,0.00019726,2]
[388588805,1759246304192,-3019.59,0.00019726,2]
[388588806,1759246304206,-594.12,0.00019726,2]
[388588807,1759246304217,-587.321651,0.00019726,2]
[388588808,1759246304227,-868.48,0.00019726,2]
[388588809,1759246304237,-569.36,0.00019726,2]
[388588810,1759246304248,-587.321651,0.00019726,2]
[388588811,1759246304259,-2733.78,0.00019726,2]
[388588812,1759246304269,-500.0,0.00019726,2]
[388588813,1759246304279,-1573.89,0.00019726,2]
[388588814,1759246304290,-587.321651,0.00019726,2]
[388588815,1759246304300,-1080.23,0.00019726,2]
[388588816,1759246304312,-587.321647,0.00019726,2]
[388588817,1759246304323,-4441.33,0.00019726,2]
[388588818,1759246304335,-1466.08,0.00019726,2]
[388588819,1759246304345,-500.0,0.00019726,2]
[388588820,1759246304357,-159.62144294,0.00019726,2]
[388588821,1759246304367,-3548.75,0.00019726,2]
[388588822,1759246304378,-500.0,0.00019726,2]
[388588823,1759246304388,-219.982106,0.00019726,2]
[388588824,1759246304398,-4498.97,0.00019726,2]
[388588825,1759246304408,-527.82,0.00019726,2]
[388588826,1759246304418,-219.982106,0.00019726,2]
[388588827,1759246304428,-3544.87,0.00019726,2]
[388588828,1759246304438,-618.18,0.00019726,2]
[388588829,1759246304448,-219.982106,0.00019726,2]
[388588830,1759246304458,-644.8,0.00019726,2]
[388588831,1759246304468,-219.982098,0.00019726,2]
[388588832,1759246304479,-1286.24,0.00019726,2]
[388588833,1759246304488,-500.0,0.00019726,2]
[388588834,1759246304499,-1042.82,0.00019726,2]
[388588835,1759246304509,-500.0,0.00019726,2]
[388588836,1759246304519,-3256.91,0.00019726,2]
[388588837,1759246304529,-1857.31,0.00019726,2]
[388588838,1759246304539,-1692.58,0.00019726,2]
[388588839,1759246304549,-2270.66,0.00019726,2]
[388588840,1759246304559,-500.0,0.00019726,2]
[388588841,1759246304569,-500.0,0.00019726,2]
[388588842,1759246304579,-2341.48,0.00019726,2]
[388588843,1759246304589,-500.0,0.00019726,2]
[388588844,1759246304599,-820.41,0.00019726,2]
[388588845,1759246304610,-1359.2,0.00019726,2]
[388588846,1759246304621,-540.78,0.00019726,2]
[388588847,1759246304631,-500.0,0.00019726,2]
[388588848,1759246304643,-500.0,0.00019726,2]
[388588849,1759246304654,-914.33,0.00019726,2]
[388588850,1759246304664,-500.0,0.00019726,2]
[388588851,1759246304674,-1658.97,0.00019726,2]
[388588852,1759246304684,-1103.38,0.00019726,2]
[388588853,1759246304693,-500.0,0.00019726,2]
[388588854,1759246304703,-3951.53,0.00019726,2]
[388588855,1759246304712,-500.0,0.00019726,2]
[388588856,1759246304722,-902.13,0.00019726,2]
[388588857,1759246304732,-2762.8,0.00019726,2]
[388588858,1759246304742,-1425.66,0.00019726,2]
[388588859,1759246304752,-500.0,0.00019726,2]
[388588860,1759246304762,-2804.96,0.00019726,2]
[388588861,1759246304771,-500.0,0.00019726,2]
[388588862,1759246304781,-500.0,0.00019726,2]
[388588863,1759246304791,-5000.76,0.00019726,2]
[388588864,1759246304801,-4140.16,0.00019726,2]
[388588865,1759246304812,-500.0,0.00019726,2]
[388588866,1759246304822,-2903.65,0.00019726,2]
[388588867,1759246304832,-6133.19,0.00019726,2]
[388588868,1759246304842,-500.0,0.00019726,2]
[388588869,1759246304852,-500.0,0.00019726,2]
[388588870,1759246304862,-1010.14,0.00019726,2]
[388588871,1759246304872,-892.39,0.00019726,2]
[388588872,1759246304881,-2702.09,0.00019726,2]
[388588873,1759246304892,-500.0,0.00019726,2]
[388588874,1759246304901,-513.53,0.00019726,2]
[388588875,1759246304911,-500.0,0.00019726,2]
[388588876,1759246304921,-6441.18,0.00019726,2]
[388588877,1759246304930,-500.0,0.00019726,2]
[388588878,1759246304940,-2084.7,0.00019726,2]
[388588879,1759246304950,-500.0,0.00019726,2]
[388588880,1759246304959,-662.84,0.00019726,2]
[388588881,1759246304969,-400.72866018,0.00019726,2]
[388588882,1759246304979,-500.0,0.00019726,2]
[388588883,1759246304988,-4145.47,0.00019726,2]
[388588884,1759246304998,-502.53,0.00019726,2]
[388588885,1759246305007,-500.0,0.00019726,2]
[388588886,1759246305017,-500.0,0.00019726,2]
[388588887,1759246305027,-500.0,0.00019726,2]
[388588888,1759246305037,-1231.78,0.00019726,2]
[388588889,1759246305047,-1440.69,0.00019726,2]
[388588890,1759246305058,-1427.41,0.00019726,2]
[388588891,1759246305070,-975.41,0.00019726,2]
[388588892,1759246305081,-267.46133515,0.00019726,2]
[388588893,1759246305092,-4628.6,0.00019726,2]
[388588894,1759246305103,-500.0,0.00019726,2]
[388588895,1759246305113,-780.52,0.00019726,2]
[388588896,1759246305123,-7132.82,0.00019726,2]
[388588897,1759246305133,-3701.62,0.00019726,2]
[388588898,1759246305143,-922.72,0.00019726,2]
[388588899,1759246305152,-946.46,0.00019726,2]
[388588900,1759246305162,-333.45249725,0.00019726,2]
[388588901,1759246305171,-500.0,0.00019726,2]
[388588902,1759246305182,-586.36,0.00019726,2]
[388588903,1759246305192,-7280.81,0.00019726,2]
[388588904,1759246305201,-4142.74,0.00019726,2]
[388588905,1759246305211,-358.49237097,0.00019726,2]
[388588906,1759246305222,-2939.28,0.00019726,2]
[388588907,1759246305232,-500.0,0.00019726,2]
[388588908,1759246305242,-500.0,0.00019726,2]
[388588909,1759246305251,-702.81,0.00019726,2]
[388588910,1759246305260,-2021.57,0.00019726,2]
[388588911,1759246305270,-1558.38,0.00019726,2]
[388588912,1759246305279,-500.0,0.00019726,2]
[388588913,1759246305289,-620.09,0.00019726,2]
[388588914,1759246305299,-500.0,0.00019726,2]
[388588915,1759246305746,-8333.2,0.00019726,2]
[388588916,1759246305770,-500.0,0.00019726,2]
[388588917,1759246305781,-500.0,0.00019726,2]
[388588918,1759246305792,-500.0,0.00019726,2]
[388588919,1759246305801,-500.0,0.00019726,2]
[388588920,1759246305811,-1290.06,0.00019726,2]
[388588921,1759246305820,-1413.35,0.00019726,2]
[388588922,1759246305831,-500.0,0.00019726,2]
[388588923,1759246305840,-500.0,0.00019726,2]
[388588924,1759246305851,-2791.8,0.00019726,2]
[388588925,1759246305862,-500.0,0.00019726,2]
[388588926,1759246305872,-300.0,0.00019726,2]
[388588927,1759246305884,-500.0,0.00019726,2]
[388588928,1759246305894,-3747.25,0.00019726,2]
[388588929,1759246305905,-500.0,0.00019726,2]
[388588930,1759246305915,-6199.04,0.00019726,2]
[388588931,1759246305925,-687.98,0.00019726,2]
[388588932,1759246305934,-487.72,0.00019726,2]
[388588933,1759246305944,-752.74,0.00019726,2]
[388588934,1759246305953,-1798.24,0.00019726,2]
[388588935,1759246305963,-1708.53,0.00019726,2]
[388588936,1759246305973,-500.0,0.00019726,2]
[388588937,1759246305984,-3361.19,0.00019726,2]
[388588938,1759246305994,-500.0,0.00019726,2]
[388588939,1759246306004,-500.0,0.00019726,2]
[388588940,1759246306016,-576.77,0.00019726,2]
[388588941,1759246306027,-500.0,0.00019726,2]
[388588942,1759246306037,-500.0,0.00019726,2]
[388588943,1759246306047,-500.0,0.00019726,2]
[388588944,1759246306057,-719.14,0.00019726,2]
[388588945,1759246306066,-684.76,0.00019726,2]
[388588946,1759246306076,-500.0,0.00019726,2]
[388588947,1759246306086,-3484.23,0.00019726,2]
[388588948,1759246306096,-500.0,0.00019726,2]
[388588949,1759246306108,-4386.1,0.00019726,2]
[388588950,1759246306118,-1012.78,0.00019726,2]
[388588951,1759246306128,-1129.62,0.00019726,2]
[388588952,1759246306137,-3268.3,0.00019726,2]
[388588953,1759246306147,-500.0,0.00019726,2]
[388588954,1759246306157,-1966.37,0.00019726,2]
[388588955,1759246306166,-1137.08,0.00019726,2]
[388588956,1759246306175,-2918.5,0.00019726,2]
[388588957,1759246306185,-5069.85,0.00019726,2]
[388588958,1759246306194,-500.0,0.00019726,2]
[388588959,1759246306203,-503.17,0.00019726,2]
[388588960,1759246306212,-804.09,0.00019726,2]
[388588961,1759246306222,-530.92,0.00019726,2]
[388588962,1759246306231,-500.0,0.00019726,2]
[388588963,1759246306241,-5981.35,0.00019726,2]
[388588964,1759246306251,-1003.96,0.00019726,2]
[388588965,1759246306260,-667.15,0.00019726,2]
[388588966,1759246306269,-639.36,0.00019726,2]
[388588967,1759246306280,-5078.73,0.00019726,2]
[388588968,1759246306289,-500.0,0.00019726,2]
[388588969,1759246306298,-500.0,0.00019726,2]
[388588970,1759246306308,-863.01,0.00019726,2]
[388588971,1759246306318,-548.22,0.00019726,2]
[388588972,1759246306331,-500.0,0.00019726,2]
[388588973,1759246306341,-500.0,0.00019726,2]
[388588974,1759246306350,-1631.64,0.00019726,2]
[388588975,1759246306360,-879.91,0.00019726,2]
[388588976,1759246306370,-500.0,0.00019726,2]
[388588977,1759246306380,-500.0,0.00019726,2]
[388588978,1759246306390,-738.4,0.00019726,2]
[388588979,1759246306399,-987.15,0.00019726,2]
[388588980,1759246306409,-516.47,0.00019726,2]
[388588981,1759246306419,-500.0,0.00019726,2]
[388588982,1759246306429,-500.0,0.00019726,2]
[388588983,1759246306438,-1145.74,0.00019726,2]
[388588984,1759246306448,-2417.52,0.00019726,2]
[388588985,1759246306457,-500.0,0.00019726,2]
[388588986,1759246306467,-4324.35,0.00019726,2]
[388588987,1759246306477,-500.0,0.00019726,2]
[388588988,1759246306486,-2216.75,0.00019726,2]
[388588989,1759246306495,-500.0,0.00019726,2]
[388588990,1759246306505,-1316.97,0.00019726,2]
[388588991,1759246306514,-2883.78,0.00019726,2]
[388588992,1759246306524,-710.32,0.00019726,2]
[388588993,1759246306534,-1309.93,0.00019726,2]
[388588994,1759246306543,-3232.3,0.00019726,2]
[388588995,1759246306554,-854.016185,0.00019726,2]
[388588996,1759246306564,-500.0,0.00019726,2]
[388588997,1759246306573,-2655.39,0.00019726,2]
[388588998,1759246306584,-500.0,0.00019726,2]
[388588999,1759246306593,-676.19,0.00019726,2]
[388589000,1759246306603,-694.45,0.00019726,2]
[388589001,1759246306613,-6192.86,0.00019726,2]
[388589002,1759246306623,-4141.47,0.00019726,2]
[388589003,1759246306633,-782.21,0.00019726,2]
[388589004,1759246306643,-500.0,0.00019726,2]
[388589005,1759246306653,-344.67931669,0.00019726,2]
[388589006,1759246306663,-2331.34,0.00019726,2]
[388589007,1759246306672,-500.0,0.00019726,2]
[388589008,1759246306682,-1285.52,0.00019726,2]
[388589009,1759246306692,-731.087657,0.00019726,2]
[388589010,1759246306703,-4420.41,0.00019726,2]
[388589011,1759246306713,-500.0,0.00019726,2]
[388589012,1759246306724,-600.48,0.00019726,2]
[388589013,1759246306734,-4081.83,0.00019726,2]
[388589014,1759246306744,-500.0,0.00019726,2]
[388589015,1759246306754,-500.0,0.00019726,2]
[388589016,1759246306763,-500.0,0.00019726,2]
[388589017,1759246306773,-500.0,0.00019726,2]
[388589018,1759246306784,-500.0,0.00019726,2]
[388589019,1759246306796,-2307.17,0.00019726,2]
[388589020,1759246306807,-500.0,0.00019726,2]
[388589021,1759246306817,-150.0,0.00019726,2]
[388589022,1759246306827,-500.0,0.00019726,2]
[388589023,1759246306837,-17236.64,0.00019726,2]
[388589024,1759246306848,-2469.04,0.00019726,2]
[388589025,1759246306859,-500.0,0.00019726,2]
[388589026,1759246306868,-500.0,0.00019726,2]
[388589027,1759246306878,-2029.55,0.00019726,2]
[388589028,1759246306888,-500.0,0.00019726,2]
[388589029,1759246306898,-1123.53,0.00019726,2]
[388589030,1759246306908,-500.0,0.00019726,2]
[388589031,1759246306917,-500.0,0.00019726,2]
[388589032,1759246306927,-3068.64,0.00019726,2]
[388589033,1759246306936,-582.51,0.00019726,2]
[388589034,1759246306947,-500.0,0.00019726,2]
[388589035,1759246306957,-500.0,0.00019726,2]
[388589036,1759246306968,-5035.91,0.00019726,2]
[388589037,1759246306978,-535.69,0.00019726,2]
[388589038,1759246306990,-397.1256375,0.00019726,2]
[388589039,1759246307000,-803.1,0.00019726,2]
[388589040,1759246307009,-2776.79,0.00019726,2]
[388589041,1759246307019,-599.02,0.00019726,2]
[388589042,1759246307029,-443.31360617,0.00019726,2]
[388589043,1759246307038,-589.87,0.00019726,2]
[388589044,1759246307048,-500.0,0.00019726,2]
[388589045,1759246307057,-5539.46,0.00019726,2]
[388589046,1759246307066,-500.0,0.00019726,2]
[388589047,1759246307075,-500.0,0.00019726,2]
[388589048,1759246307084,-1990.07,0.00019726,2]
[388589049,1759246307095,-3720.94,0.00019726,2]
[388589050,1759246307106,-1323.14,0.00019726,2]
[388589051,1759246307115,-770.21,0.00019726,2]
[388589052,1759246307124,-842.76,0.00019726,2]
[388589053,1759246307133,-3292.83,0.00019726,2]
[388589054,1759246307143,-3895.89,0.00019726,2]
[388589055,1759246307152,-622.5,0.00019726,2]
[388589056,1759246307161,-3647.21,0.00019726,2]
[388589057,1759246307170,-787.38,0.00019726,2]
[388589058,1759246307180,-500.0,0.00019726,2]
[388589059,1759246307189,-500.0,0.00019726,2]
[388589060,1759246307198,-679.72,0.00019726,2]
[388589061,1759246307208,-1562.64,0.00019726,2]
[388589062,1759246307217,-614.02,0.00019726,2]
[388589063,1759246307226,-500.0,0.00019726,2]
[388589064,1759246307236,-12282.2,0.00019726,2]
[388589065,1759246307246,-150.0,0.00019726,2]
[388589066,1759246307255,-150.0,0.00019726,2]
[388589067,1759246307265,-500.0,0.00019726,2]
[388589068,1759246307275,-500.0,0.00019726,2]
[388589069,1759246307284,-500.0,0.00019726,2]
[388589070,1759246307294,-646.09,0.00019726,2]
[388589071,1759246307303,-500.0,0.00019726,2]
[388589072,1759246307313,-1373.24,0.00019726,2]
[388589073,1759246307325,-500.0,0.00019726,2]
[388589074,1759246307339,-1739.88,0.00019726,2]
[388589075,1759246307349,-500.0,0.00019726,2]
[388589076,1759246307359,-2249.95,0.00019726,2]
[388589077,1759246307371,-3071.32,0.00019726,2]
[388589078,1759246307380,-2082.41,0.00019726,2]
[388589079,1759246307390,-500.0,0.00019726,2]
[388589080,1759246307399,-1629.45,0.00019726,2]
[388589081,1759246307413,-3668.68,0.00019726,2]
[388589082,1759246307422,-3762.23,0.00019726,2]
[388589083,1759246307433,-3134.62,0.00019726,2]
[388589084,1759246307442,-500.0,0.00019726,2]
[388589085,1759246307452,-335.41954383,0.00019726,2]
[388589086,1759246307462,-636.82,0.00019726,2]
[388589087,1759246307471,-3306.06,0.00019726,2]
[388589088,1759246307480,-337.639549,0.00019726,2]
[388589089,1759246307490,-612.9,0.00019726,2]
[388589090,1759246307499,-500.0,0.00019726,2]
[388589091,1759246307509,-500.0,0.00019726,2]
[388589092,1759246307519,-500.0,0.00019726,2]
[388589093,1759246307531,-964.22,0.00019726,2]
[388589094,1759246307540,-3545.68,0.00019726,2]
[388589095,1759246307550,-18778.46,0.00019726,2]
[388589096,1759246307559,-1239.87,0.00019726,2]
[388589097,1759246307569,-500.0,0.00019726,2]
[388589098,1759246307579,-4476.62,0.00019726,2]
[388589099,1759246307590,-3480.69,0.00019726,2]
[388589100,1759246307599,-2560.24,0.00019726,2]
[388589101,1759246307611,-4332.59,0.00019726,2]
[388589102,1759246307621,-500.0,0.00019726,2]
[388589103,1759246307630,-1324.76,0.00019726,2]
[388589104,1759246307639,-3046.09,0.00019726,2]
[388589105,1759246307649,-500.0,0.00019726,2]
[388589106,1759246307658,-3894.44,0.00019726,2]
[388589107,1759246307667,-5206.27,0.00019726,2]
[388589108,1759246307677,-915.79,0.00019726,2]
[388589109,1759246307686,-4126.68,0.00019726,2]
[388589110,1759246307695,-10311.53,0.00019726,2]
[388589111,1759246307705,-500.0,0.00019726,2]
[388589112,1759246307715,-5602.77,0.00019726,2]
[388589113,1759246307724,-500.0,0.00019726,2]
[388589114,1759246307734,-1282.5,0.00019726,2]
[388589115,1759246307743,-500.0,0.00019726,2]
[388589116,1759246307753,-500.0,0.00019726,2]
[388589117,1759246307763,-3942.29,0.00019726,2]
[388589118,1759246307772,-3833.9,0.00019726,2]
[388589119,1759246307782,-5037.2,0.00019726,2]
[388589120,1759246307792,-500.0,0.00019726,2]
[388589121,1759246307802,-703.44,0.00019726,2]
[388589122,1759246307813,-4837.09,0.00019726,2]
[388589123,1759246307822,-500.0,0.00019726,2]
[388589124,1759246307831,-500.0,0.00019726,2]
[388589125,1759246307841,-3222.19,0.00019726,2]
[388589126,1759246307850,-3184.79,0.00019726,2]
[388589127,1759246307862,-5309.29,0.00019726,2]
[388589128,1759246307872,-3202.95,0.00019726,2]
[388589129,1759246307881,-500.0,0.00019726,2]
[388589130,1759246307891,-500.0,0.00019726,2]
[388589131,1759246307901,-1568.57,0.00019726,2]
[388589132,1759246307911,-1844.88,0.00019726,2]
[388589133,1759246307921,-7963.67,0.00019726,2]
[388589134,1759246307931,-721.68,0.00019726,2]
[388589135,1759246307941,-7321.33,0.00019726,2]
[388589136,1759246307951,-810.92,0.00019726,2]
[388589137,1759246307961,-557.63,0.00019726,2]
[388589138,1759246307970,-3637.94,0.00019726,2]
[388589139,1759246307979,-1289.42,0.00019726,2]
[388589140,1759246307989,-2252.6,0.00019726,2]
[388589141,1759246307998,-4314.6,0.00019726,2]
[388589142,1759246308008,-500.0,0.00019726,2]
[388589143,1759246308017,-6308.86,0.00019726,2]
[388589144,1759246308026,-500.0,0.00019726,2]
[388589145,1759246308035,-500.0,0.00019726,2]
[388589146,1759246308045,-701.55,0.00019726,2]
[388589147,1759246308054,-4217.23,0.00019726,2]
[388589148,1759246308064,-2853.18,0.00019726,2]
[388589149,1759246308073,-500.0,0.00019726,2]
[388589150,1759246308083,-500.0,0.00019726,2]
[388589151,1759246308092,-415.72378253,0.00019726,2]
[388589152,1759246308102,-2067.5,0.00019726,2]
[388589153,1759246308113,-3408.13,0.00019726,2]
[388589154,1759246308216,-9687.01,0.00019726,2]
[388589155,1759246308227,-4433.48,0.00019726,2]
[388589156,1759246308236,-5575.77,0.00019726,2]
[388589157,1759246308245,-3582.51,0.00019726,2]
[388589158,1759246308255,-2444.13,0.00019726,2]
[388589159,1759246308264,-814.25,0.00019726,2]
[388589160,1759246308273,-1324.63,0.00019726,2]
[388589161,1759246308282,-500.0,0.00019726,2]
[388589162,1759246308292,-3104.67,0.00019726,2]
[388589163,1759246308301,-11427.76,0.00019726,2]
[388589164,1759246308311,-2971.34,0.00019726,2]
[388589165,1759246308321,-500.0,0.00019726,2]
[388589166,1759246308336,-500.0,0.00019726,2]
[388589167,1759246308346,-4088.09,0.00019726,2]
[388589168,1759246308356,-791.86,0.00019726,2]
[388589169,1759246308366,-500.0,0.00019726,2]
[388589170,1759246308375,-818.99,0.00019726,2]
[388589171,1759246308385,-5601.94,0.00019726,2]
[388589172,1759246308395,-3178.75,0.00019726,2]
[388589173,1759246308404,-500.0,0.00019726,2]
[388589174,1759246308414,-500.0,0.00019726,2]
[388589175,1759246308423,-854.016184,0.00019726,2]
[388589176,1759246308433,-3428.1,0.00019726,2]
[388589177,1759246308442,-812.27,0.00019726,2]
[388589178,1759246308452,-500.0,0.00019726,2]
[388589179,1759246308462,-2009.05,0.00019726,2]
[388589180,1759246308471,-872.83,0.00019726,2]
[388589181,1759246308481,-2583.72,0.00019726,2]
[388589182,1759246308491,-2100.28,0.00019726,2]
[388589183,1759246308501,-3180.64,0.00019726,2]
[388589184,1759246308511,-872.83,0.00019726,2]
[388589185,1759246308520,-731.087656,0.00019726,2]
[388589186,1759246308530,-3259.44,0.00019726,2]
[388589187,1759246308539,-4655.15,0.00019726,2]
[388589188,1759246308548,-1264.61,0.00019726,2]
[388589189,1759246308558,-2065.22,0.00019726,2]
[388589190,1759246308567,-500.0,0.00019726,2]
[388589191,1759246308577,-500.0,0.00019726,2]
[388589192,1759246308586,-1074.54,0.00019726,2]
[388589193,1759246308596,-500.0,0.00019726,2]
[388589194,1759246308607,-2292.66,0.00019726,2]
[388589195,1759246308617,-737.86,0.00019726,2]
[388589196,1759246308627,-3708.48,0.00019726,2]
[388589197,1759246308637,-4093.1,0.00019726,2]
[388589198,1759246308646,-634.55,0.00019726,2]
[388589199,1759246308655,-3228.48,0.00019726,2]
[388589200,1759246308665,-500.0,0.00019726,2]
[388589201,1759246308674,-673.51,0.00019726,2]
[388589202,1759246308683,-949.13,0.00019726,2]
[388589203,1759246308693,-500.0,0.00019726,2]
[388589204,1759246308702,-3104.32,0.00019726,2]
[388589205,1759246308712,-500.0,0.00019726,2]
[388589206,1759246308722,-8635.78,0.00019726,2]
[388589207,1759246308731,-5292.52,0.00019726,2]
[388589208,1759246308740,-3127.17,0.00019726,2]
[388589209,1759246308750,-1196.77,0.00019726,2]
[388589210,1759246308760,-2288.45,0.00019726,2]
[388589211,1759246308769,-1781.58,0.00019726,2]
[388589212,1759246308778,-500.0,0.00019726,2]
[388589213,1759246308787,-2737.98,0.00019726,2]
[388589214,1759246308796,-517.49114458,0.00019726,2]
[388589215,1759246308805,-500.0,0.00019726,2]
[388589216,1759246308814,-4544.53,0.00019726,2]
[388589217,1759246308824,-500.0,0.00019726,2]
[388589218,1759246308833,-2797.9,0.00019726,2]
[388589219,1759246308842,-827.76,0.00019726,2]